[Event "Titled Tuesday Blitz July 6 2021"]
[White "Kulkarni, Rakesh"]
[Black "Afanasiev, Nikita"]
[WhiteFideId "5037077"]
[BlackFideId "24183555"]
[WhiteElo "2246"]
[BlackElo "2521"]
[Result "0-1"]
[Round "01"]
[TimeControl "180+1"]
[Date "2021.07.06"]
[WhiteClock "0:00:02"]
[BlackClock "0:01:06"]

1. e4 {[%clk 0:03:00]}  c5 {[%clk 0:02:55]} 2. c3 {[%clk 0:02:57]}  Nf6 {[%clk 0:02:51]} 3. e5 {[%clk 0:02:57]}  Nd5 {[%clk 0:02:51]} 4. d4 {[%clk 0:02:57]}  cxd4 {[%clk 0:02:51]} 5. Nf3 {[%clk 0:02:55]}  Nc6 {[%clk 0:02:51]} 6. cxd4 {[%clk 0:02:55]}  e6 {[%clk 0:02:51]} 7. Bc4 {[%clk 0:02:55]}  d6 {[%clk 0:02:51]} 8. O-O {[%clk 0:02:55]}  Be7 {[%clk 0:02:50]} 9. Qe2 {[%clk 0:02:55]}  O-O {[%clk 0:02:49]} 10. Nc3 {[%clk 0:02:53]}  Nb6 {[%clk 0:02:48]} 11. Bb3 {[%clk 0:02:47]}  Bd7 {[%clk 0:02:46]} 12. Re1 {[%clk 0:02:47]}  Rc8 {[%clk 0:02:45]} 13. Bc2 {[%clk 0:02:40]}  Nb4 {[%clk 0:02:31]} 14. Bb1 {[%clk 0:02:32]}  N4d5 {[%clk 0:02:31]} 15. Qe4 {[%clk 0:02:11]}  g6 {[%clk 0:02:28]} 16. Nxd5 {[%clk 0:02:12]}  Nxd5 {[%clk 0:02:25]} 17. Bh6 {[%clk 0:02:12]}  Re8 {[%clk 0:02:24]} 18. a3 {[%clk 0:02:06]}  Qb6 {[%clk 0:02:22]} 19. Ng5 {[%clk 0:01:13]}  Qxb2 {[%clk 0:02:11]} 20. Bd3 {[%clk 0:01:12]}  Rc3 {[%clk 0:02:04]} 21. Rab1 {[%clk 0:00:33]}  Qxa3 {[%clk 0:02:03]} 22. Rxb7 {[%clk 0:00:29]}  Bc6 {[%clk 0:01:57]} 23. Rxe7 {[%clk 0:00:23]}  Nxe7 {[%clk 0:01:49]} 24. Qf4 {[%clk 0:00:23]}  Nf5 {[%clk 0:01:46]} 25. Bxf5 {[%clk 0:00:17]}  exf5 {[%clk 0:01:47]} 26. Nxh7 {[%clk 0:00:07]}  Kxh7 {[%clk 0:01:42]} 27. Bg5 {[%clk 0:00:07]}  Rh3 {[%clk 0:01:34]} 28. gxh3 {[%clk 0:00:05]}  Qxh3 {[%clk 0:01:34]} 29. Qh4+ {[%clk 0:00:04]}  Qxh4 {[%clk 0:01:34]} 30. Bxh4 {[%clk 0:00:05]}  dxe5 {[%clk 0:01:27]} 31. dxe5 {[%clk 0:00:06]}  Kh6 {[%clk 0:01:22]} 32. Bf6 {[%clk 0:00:06]}  g5 {[%clk 0:01:21]} 33. Rc1 {[%clk 0:00:05]}  Bd5 {[%clk 0:01:20]} 34. Rd1 {[%clk 0:00:03]}  Be6 {[%clk 0:01:16]} 35. Rd6 {[%clk 0:00:04]}  f4 {[%clk 0:01:13]} 36. h4 {[%clk 0:00:05]}  gxh4 {[%clk 0:01:12]} 37. Bxh4 {[%clk 0:00:05]}  Kh5 {[%clk 0:01:12]} 38. Bf6 {[%clk 0:00:05]}  Rg8+ {[%clk 0:01:12]} 39. Kf1 {[%clk 0:00:06]}  Kg4 {[%clk 0:01:10]} 40. Ke2 {[%clk 0:00:06]}  Kf5 {[%clk 0:01:07]} 41. Ra6 {[%clk 0:00:06]}  Bc4+ {[%clk 0:01:06]} 42. Kf3 {[%clk 0:00:02]}  Bxa6 {[%clk 0:01:07]} 43. e6 {[%clk 0:00:02]}  Kxf6 {[%clk 0:01:06]} 0-1


[Site "https://www.chess.com"]

[Event "Titled Tuesday Blitz July 6 2021"]
[White "Lagunow, Raphael"]
[Black "Khamrakulov, Djurabek"]
[WhiteFideId "24652644"]
[BlackFideId "14201143"]
[WhiteElo "2400"]
[BlackElo "2535"]
[Result "1/2-1/2"]
[Round "01"]
[TimeControl "180+1"]
[Date "2021.07.06"]
[WhiteClock "0:00:18"]
[BlackClock "0:00:25"]

1. e4 {[%clk 0:03:00]}  d5 {[%clk 0:02:58]} 2. exd5 {[%clk 0:03:00]}  Qxd5 {[%clk 0:02:59]} 3. Nc3 {[%clk 0:03:00]}  Qd8 {[%clk 0:02:59]} 4. d4 {[%clk 0:03:00]}  g6 {[%clk 0:02:59]} 5. Bc4 {[%clk 0:03:00]}  Bg7 {[%clk 0:02:59]} 6. Nf3 {[%clk 0:02:58]}  Nf6 {[%clk 0:03:00]} 7. O-O {[%clk 0:02:57]}  O-O {[%clk 0:03:00]} 8. h3 {[%clk 0:02:55]}  a6 {[%clk 0:03:01]} 9. a4 {[%clk 0:02:53]}  b6 {[%clk 0:03:01]} 10. Re1 {[%clk 0:02:54]}  Bb7 {[%clk 0:03:01]} 11. Ne5 {[%clk 0:02:53]}  Nc6 {[%clk 0:02:56]} 12. Nxc6 {[%clk 0:02:45]}  Bxc6 {[%clk 0:02:56]} 13. d5 {[%clk 0:02:45]}  Bb7 {[%clk 0:02:54]} 14. Bg5 {[%clk 0:02:45]}  h6 {[%clk 0:02:50]} 15. Bh4 {[%clk 0:02:44]}  Qd6 {[%clk 0:02:43]} 16. Bg3 {[%clk 0:02:42]}  Qc5 {[%clk 0:02:43]} 17. Bb3 {[%clk 0:02:42]}  Rad8 {[%clk 0:02:41]} 18. Qe2 {[%clk 0:02:33]}  Rfe8 {[%clk 0:02:29]} 19. Rad1 {[%clk 0:02:23]}  Nxd5 {[%clk 0:02:12]} 20. Nxd5 {[%clk 0:02:12]}  Bxd5 {[%clk 0:02:13]} 21. Bxc7 {[%clk 0:02:00]}  Qxc7 {[%clk 0:02:00]} 22. Bxd5 {[%clk 0:01:59]}  Bxb2 {[%clk 0:01:52]} 23. Qxa6 {[%clk 0:01:47]}  e6 {[%clk 0:01:31]} 24. Bb3 {[%clk 0:01:47]}  Bc3 {[%clk 0:01:30]} 25. Rf1 {[%clk 0:01:43]}  Bd4 {[%clk 0:01:24]} 26. Qe2 {[%clk 0:01:40]}  Qc5 {[%clk 0:01:22]} 27. Rd3 {[%clk 0:01:38]}  e5 {[%clk 0:01:15]} 28. Qf3 {[%clk 0:01:34]}  Qe7 {[%clk 0:01:00]} 29. Re1 {[%clk 0:01:31]}  e4 {[%clk 0:00:54]} 30. Qg4 {[%clk 0:01:07]}  Bxf2+ {[%clk 0:00:46]} 31. Kh1 {[%clk 0:00:52]}  Kg7 {[%clk 0:00:40]} 32. Rxe4 {[%clk 0:00:37]}  Qxe4 {[%clk 0:00:31]} 33. Qxe4 {[%clk 0:00:38]}  Rxe4 {[%clk 0:00:31]} 34. Rxd8 {[%clk 0:00:38]}  Bg3 {[%clk 0:00:25]} 35. Rd1 {[%clk 0:00:38]}  f5 {[%clk 0:00:23]} 36. Kg1 {[%clk 0:00:35]}  h5 {[%clk 0:00:23]} 37. Ra1 {[%clk 0:00:29]}  Kf6 {[%clk 0:00:22]} 38. Bd5 {[%clk 0:00:28]}  Re2 {[%clk 0:00:20]} 39. c4 {[%clk 0:00:26]}  Ke5 {[%clk 0:00:18]} 40. Bf3 {[%clk 0:00:22]}  Re3 {[%clk 0:00:19]} 41. a5 {[%clk 0:00:18]}  bxa5 {[%clk 0:00:16]} 42. Rxa5+ {[%clk 0:00:19]}  Kd4 {[%clk 0:00:17]} 43. Ra1 {[%clk 0:00:18]}  Kxc4 {[%clk 0:00:17]} 44. Kf1 {[%clk 0:00:17]}  Kd4 {[%clk 0:00:17]} 45. Be2 {[%clk 0:00:16]}  h4 {[%clk 0:00:17]} 46. Rd1+ {[%clk 0:00:17]}  Ke5 {[%clk 0:00:17]} 47. Rd3 {[%clk 0:00:17]}  Re4 {[%clk 0:00:17]} 48. Ra3 {[%clk 0:00:16]}  Kf4 {[%clk 0:00:17]} 49. Rc3 {[%clk 0:00:14]}  Rb4 {[%clk 0:00:16]} 50. Rc4+ {[%clk 0:00:15]}  Rxc4 {[%clk 0:00:16]} 51. Bxc4 {[%clk 0:00:15]}  g5 {[%clk 0:00:16]} 52. Be2 {[%clk 0:00:15]}  g4 {[%clk 0:00:17]} 53. hxg4 {[%clk 0:00:16]}  fxg4 {[%clk 0:00:18]} 54. Kg1 {[%clk 0:00:16]}  Kg5 {[%clk 0:00:18]} 55. Kh1 {[%clk 0:00:16]}  Bf4 {[%clk 0:00:19]} 56. Kg1 {[%clk 0:00:16]}  Be3+ {[%clk 0:00:20]} 57. Kh2 {[%clk 0:00:16]}  Kf4 {[%clk 0:00:20]} 58. Kh1 {[%clk 0:00:14]}  Kg3 {[%clk 0:00:20]} 59. Bd1 {[%clk 0:00:13]}  Bd4 {[%clk 0:00:20]} 60. Be2 {[%clk 0:00:14]}  Be5 {[%clk 0:00:20]} 61. Bd1 {[%clk 0:00:14]}  Kf4 {[%clk 0:00:20]} 62. Be2 {[%clk 0:00:14]}  g3 {[%clk 0:00:20]} 63. Bh5 {[%clk 0:00:13]}  Ke3 {[%clk 0:00:21]} 64. Bg6 {[%clk 0:00:13]}  Kf2 {[%clk 0:00:21]} 65. Bf5 {[%clk 0:00:14]}  Bf4 {[%clk 0:00:21]} 66. Bh3 {[%clk 0:00:15]}  Kf1 {[%clk 0:00:21]} 67. Bg4 {[%clk 0:00:15]}  Be3 {[%clk 0:00:21]} 68. Bh3 {[%clk 0:00:16]}  Bf2 {[%clk 0:00:22]} 69. Bg4 {[%clk 0:00:17]}  Bg1 {[%clk 0:00:22]} 70. Bh3 {[%clk 0:00:18]}  Bf2 {[%clk 0:00:23]} 71. Bg4 {[%clk 0:00:18]}  Bg1 {[%clk 0:00:24]} 72. Bh3 {[%clk 0:00:18]}  Bf2 {[%clk 0:00:25]} 1/2-1/2


[Site "https://www.chess.com"]

[Event "Titled Tuesday Blitz July 6 2021"]
[White "Leve, Nitai"]
[Black "Tristan, Leonardo"]
[WhiteFideId "2006898"]
[BlackFideId "113816"]
[WhiteElo "2144"]
[BlackElo "2404"]
[Result "1-0"]
[Round "01"]
[TimeControl "180+1"]
[Date "2021.07.06"]
[WhiteClock "0:00:17"]
[BlackClock "0:00:42"]

1. e4 {[%clk 0:03:00]}  c5 {[%clk 0:02:59]} 2. Nf3 {[%clk 0:02:55]}  Nc6 {[%clk 0:02:59]} 3. d4 {[%clk 0:02:54]}  cxd4 {[%clk 0:03:00]} 4. Nxd4 {[%clk 0:02:54]}  Nf6 {[%clk 0:03:01]} 5. Nc3 {[%clk 0:02:54]}  e6 {[%clk 0:03:01]} 6. Nxc6 {[%clk 0:02:53]}  bxc6 {[%clk 0:03:01]} 7. Bd3 {[%clk 0:02:53]}  d5 {[%clk 0:03:01]} 8. exd5 {[%clk 0:02:54]}  cxd5 {[%clk 0:02:56]} 9. O-O {[%clk 0:02:55]}  Be7 {[%clk 0:02:54]} 10. b3 {[%clk 0:02:51]}  O-O {[%clk 0:02:54]} 11. Bb2 {[%clk 0:02:49]}  Bb7 {[%clk 0:02:52]} 12. Re1 {[%clk 0:02:43]}  Rc8 {[%clk 0:02:50]} 13. Qe2 {[%clk 0:02:41]}  Qa5 {[%clk 0:02:47]} 14. Qf3 {[%clk 0:02:27]}  Rc7 {[%clk 0:02:35]} 15. Nb5 {[%clk 0:02:20]}  Rc5 {[%clk 0:02:22]} 16. Ba3 {[%clk 0:02:00]}  Ne4 {[%clk 0:02:06]} 17. b4 {[%clk 0:01:38]}  Qxb5 {[%clk 0:01:52]} 18. Bxb5 {[%clk 0:01:34]}  Rxb5 {[%clk 0:01:53]} 19. Rad1 {[%clk 0:01:14]}  a5 {[%clk 0:01:44]} 20. bxa5 {[%clk 0:01:06]}  Bxa3 {[%clk 0:01:27]} 21. Qxa3 {[%clk 0:01:07]}  Ra8 {[%clk 0:01:27]} 22. Rb1 {[%clk 0:01:00]}  Rbxa5 {[%clk 0:01:25]} 23. Qe7 {[%clk 0:00:54]}  Bc6 {[%clk 0:01:25]} 24. Qc7 {[%clk 0:00:48]}  Be8 {[%clk 0:01:15]} 25. Rb8 {[%clk 0:00:37]}  Kf8 {[%clk 0:01:02]} 26. Rxa8 {[%clk 0:00:33]}  Rxa8 {[%clk 0:01:02]} 27. Ra1 {[%clk 0:00:32]}  Ra4 {[%clk 0:00:59]} 28. f3 {[%clk 0:00:27]}  Nf6 {[%clk 0:00:56]} 29. Qd6+ {[%clk 0:00:27]}  Kg8 {[%clk 0:00:57]} 30. a3 {[%clk 0:00:26]}  h5 {[%clk 0:00:55]} 31. Rb1 {[%clk 0:00:25]}  Rc4 {[%clk 0:00:51]} 32. Rb8 {[%clk 0:00:23]}  Kh7 {[%clk 0:00:47]} 33. Qe7 {[%clk 0:00:20]}  Bd7 {[%clk 0:00:47]} 34. Qxf7 {[%clk 0:00:18]}  Rxc2 {[%clk 0:00:48]} 35. h3 {[%clk 0:00:17]}  d4 {[%clk 0:00:44]} 36. Rb7 {[%clk 0:00:17]}  d3 {[%clk 0:00:44]} 37. Rxd7 {[%clk 0:00:16]}  Nxd7 {[%clk 0:00:45]} 38. Qxd7 {[%clk 0:00:16]}  d2 {[%clk 0:00:45]} 39. Qd3+ {[%clk 0:00:16]}  Kh6 {[%clk 0:00:41]} 40. Qxc2 {[%clk 0:00:17]}  Kg5 {[%clk 0:00:42]} 41. Qxd2+ {[%clk 0:00:17]}  Kh4 {[%clk 0:00:42]} 42. Qf4# {[%clk 0:00:17]} 1-0


[Site "https://www.chess.com"]

[Event "Titled Tuesday Blitz July 6 2021"]
[White "Ljukin, Sergei"]
[Black "Alavi, Sayed Javad"]
[WhiteFideId "14102200"]
[BlackFideId "12500607"]
[WhiteElo "2309"]
[BlackElo "2495"]
[Result "1-0"]
[Round "01"]
[TimeControl "180+1"]
[Date "2021.07.06"]
[WhiteClock "0:00:10"]
[BlackClock "0:00:01"]

1. e4 {[%clk 0:03:00]}  c5 {[%clk 0:02:59]} 2. Nf3 {[%clk 0:02:59]}  e6 {[%clk 0:02:59]} 3. d4 {[%clk 0:02:58]}  cxd4 {[%clk 0:03:00]} 4. Nxd4 {[%clk 0:02:59]}  Nc6 {[%clk 0:03:01]} 5. Nc3 {[%clk 0:02:59]}  Qc7 {[%clk 0:02:59]} 6. Be3 {[%clk 0:02:58]}  a6 {[%clk 0:02:59]} 7. Qd2 {[%clk 0:02:58]}  Nf6 {[%clk 0:02:59]} 8. f3 {[%clk 0:02:57]}  Be7 {[%clk 0:02:55]} 9. O-O-O {[%clk 0:02:55]}  O-O {[%clk 0:02:55]} 10. g4 {[%clk 0:02:54]}  b5 {[%clk 0:02:52]} 11. Nce2 {[%clk 0:02:36]}  Bb7 {[%clk 0:02:34]} 12. Ng3 {[%clk 0:02:34]}  d5 {[%clk 0:02:21]} 13. g5 {[%clk 0:02:33]}  Nd7 {[%clk 0:02:21]} 14. exd5 {[%clk 0:02:33]}  Nxd4 {[%clk 0:02:11]} 15. dxe6 {[%clk 0:01:55]}  Nxc2 {[%clk 0:01:09]} 16. Qxc2 {[%clk 0:01:22]}  Rac8 {[%clk 0:01:08]} 17. Qxc7 {[%clk 0:01:21]}  Rxc7+ {[%clk 0:01:09]} 18. Kb1 {[%clk 0:01:21]}  fxe6 {[%clk 0:01:03]} 19. Be2 {[%clk 0:01:04]}  Bxf3 {[%clk 0:00:59]} 20. Bxf3 {[%clk 0:01:04]}  Rxf3 {[%clk 0:01:00]} 21. Rhe1 {[%clk 0:01:03]}  Kf7 {[%clk 0:00:51]} 22. Ne4 {[%clk 0:01:00]}  Ne5 {[%clk 0:00:47]} 23. h4 {[%clk 0:00:52]}  Nc4 {[%clk 0:00:40]} 24. Bd4 {[%clk 0:00:48]}  Rd7 {[%clk 0:00:36]} 25. h5 {[%clk 0:00:44]}  Bb4 {[%clk 0:00:34]} 26. g6+ {[%clk 0:00:33]}  hxg6 {[%clk 0:00:31]} 27. Ng5+ {[%clk 0:00:33]}  Kg8 {[%clk 0:00:25]} 28. Nxf3 {[%clk 0:00:33]}  Bxe1 {[%clk 0:00:23]} 29. Rxe1 {[%clk 0:00:31]}  gxh5 {[%clk 0:00:21]} 30. Rxe6 {[%clk 0:00:25]}  h4 {[%clk 0:00:18]} 31. Re4 {[%clk 0:00:16]}  h3 {[%clk 0:00:09]} 32. Rh4 {[%clk 0:00:15]}  Rf7 {[%clk 0:00:07]} 33. Rxh3 {[%clk 0:00:14]}  Rxf3 {[%clk 0:00:06]} 34. Rh1 {[%clk 0:00:13]}  Rd3 {[%clk 0:00:02]} 35. Bc3 {[%clk 0:00:12]}  Rg3 {[%clk 0:00:02]} 36. Rd1 {[%clk 0:00:11]}  g5 {[%clk 0:00:02]} 37. Rd8+ {[%clk 0:00:10]}  Kf7 {[%clk 0:00:01]} 38. Ra8 {[%clk 0:00:10]} 1-0


[Site "https://www.chess.com"]

[Event "Titled Tuesday Blitz July 6 2021"]
[White "Maghsoodloo, Parham"]
[Black "Zufic, Miroslav"]
[WhiteFideId "12539929"]
[BlackFideId "14506157"]
[WhiteElo "2601"]
[BlackElo "2362"]
[Result "1-0"]
[Round "01"]
[TimeControl "180+1"]
[Date "2021.07.06"]
[WhiteClock "0:00:18"]
[BlackClock "0:00:02"]

1. e4 {[%clk 0:03:00]}  c5 {[%clk 0:02:58]} 2. Nf3 {[%clk 0:03:01]}  Nc6 {[%clk 0:02:59]} 3. Nc3 {[%clk 0:03:01]}  d6 {[%clk 0:02:56]} 4. Bb5 {[%clk 0:03:02]}  Bd7 {[%clk 0:02:56]} 5. d4 {[%clk 0:03:02]}  cxd4 {[%clk 0:02:54]} 6. Nxd4 {[%clk 0:03:03]}  Nxd4 {[%clk 0:02:53]} 7. Bxd7+ {[%clk 0:03:02]}  Qxd7 {[%clk 0:02:53]} 8. Qxd4 {[%clk 0:03:03]}  Nf6 {[%clk 0:02:52]} 9. Bg5 {[%clk 0:02:58]}  Qg4 {[%clk 0:02:34]} 10. Bxf6 {[%clk 0:02:57]}  gxf6 {[%clk 0:02:23]} 11. Nd5 {[%clk 0:02:42]}  Rc8 {[%clk 0:02:20]} 12. Qa4+ {[%clk 0:02:39]}  Kd8 {[%clk 0:01:45]} 13. O-O {[%clk 0:02:27]}  Rg8 {[%clk 0:01:32]} 14. g3 {[%clk 0:01:51]}  h5 {[%clk 0:01:32]} 15. Rfe1 {[%clk 0:01:42]}  h4 {[%clk 0:01:29]} 16. Re3 {[%clk 0:01:08]}  f5 {[%clk 0:01:15]} 17. Qa5+ {[%clk 0:00:59]}  b6 {[%clk 0:00:59]} 18. Qxa7 {[%clk 0:00:59]}  f4 {[%clk 0:01:00]} 19. Qxb6+ {[%clk 0:00:57]}  Ke8 {[%clk 0:00:58]} 20. Rc3 {[%clk 0:00:51]}  hxg3 {[%clk 0:00:46]} 21. hxg3 {[%clk 0:00:41]}  Rxc3 {[%clk 0:00:11]} 22. bxc3 {[%clk 0:00:40]}  f5 {[%clk 0:00:06]} 23. Qc6+ {[%clk 0:00:26]}  Kf7 {[%clk 0:00:06]} 24. Qc4 {[%clk 0:00:25]}  e6 {[%clk 0:00:03]} 25. Nc7 {[%clk 0:00:26]}  Rg6 {[%clk 0:00:03]} 26. exf5 {[%clk 0:00:19]}  Qxf5 {[%clk 0:00:03]} 27. Re1 {[%clk 0:00:18]}  d5 {[%clk 0:00:03]} 28. Qc6 {[%clk 0:00:18]}  fxg3 {[%clk 0:00:02]} 29. f4 {[%clk 0:00:18]} 1-0


[Site "https://www.chess.com"]

[Event "Titled Tuesday Blitz July 6 2021"]
[White "Manukian, Artak"]
[Black "Timmermans, Mark"]
[WhiteFideId "13301373"]
[BlackFideId "1026399"]
[WhiteElo "2383"]
[BlackElo "2460"]
[Result "1-0"]
[Round "01"]
[TimeControl "180+1"]
[Date "2021.07.06"]
[WhiteClock "0:00:12"]
[BlackClock "0:00:06"]

1. e4 {[%clk 0:03:00]}  e5 {[%clk 0:02:53]} 2. Nf3 {[%clk 0:03:00]}  Nc6 {[%clk 0:02:49]} 3. d4 {[%clk 0:03:00]}  exd4 {[%clk 0:02:50]} 4. Nxd4 {[%clk 0:03:01]}  Nf6 {[%clk 0:02:51]} 5. Nxc6 {[%clk 0:03:01]}  bxc6 {[%clk 0:02:51]} 6. e5 {[%clk 0:03:01]}  Qe7 {[%clk 0:02:50]} 7. Qe2 {[%clk 0:03:01]}  Nd5 {[%clk 0:02:51]} 8. c4 {[%clk 0:03:02]}  Nb6 {[%clk 0:02:51]} 9. b3 {[%clk 0:03:02]}  g6 {[%clk 0:02:50]} 10. g3 {[%clk 0:03:01]}  Bg7 {[%clk 0:02:50]} 11. Bb2 {[%clk 0:03:01]}  O-O {[%clk 0:02:50]} 12. Bg2 {[%clk 0:03:01]}  Re8 {[%clk 0:02:51]} 13. f4 {[%clk 0:03:00]}  f6 {[%clk 0:02:51]} 14. O-O {[%clk 0:02:54]}  fxe5 {[%clk 0:02:50]} 15. Re1 {[%clk 0:02:52]}  e4 {[%clk 0:02:40]} 16. Na3 {[%clk 0:02:41]}  d5 {[%clk 0:02:38]} 17. Rac1 {[%clk 0:02:34]}  Bg4 {[%clk 0:02:32]} 18. Qc2 {[%clk 0:02:29]}  Rac8 {[%clk 0:02:17]} 19. Bxg7 {[%clk 0:02:28]}  Qxg7 {[%clk 0:02:16]} 20. cxd5 {[%clk 0:02:27]}  cxd5 {[%clk 0:02:17]} 21. Nb5 {[%clk 0:02:27]}  c5 {[%clk 0:02:02]} 22. Nd6 {[%clk 0:02:22]}  Red8 {[%clk 0:02:02]} 23. Nxc8 {[%clk 0:02:22]}  Rxc8 {[%clk 0:02:03]} 24. h3 {[%clk 0:02:17]}  Be6 {[%clk 0:02:00]} 25. Qd2 {[%clk 0:02:12]}  Qd4+ {[%clk 0:01:18]} 26. Qxd4 {[%clk 0:02:11]}  cxd4 {[%clk 0:01:19]} 27. Rxc8+ {[%clk 0:02:10]}  Bxc8 {[%clk 0:01:20]} 28. Bxe4 {[%clk 0:01:47]}  dxe4 {[%clk 0:01:13]} 29. Rxe4 {[%clk 0:01:48]}  Bxh3 {[%clk 0:01:12]} 30. Rxd4 {[%clk 0:01:48]}  Kf7 {[%clk 0:01:09]} 31. Kf2 {[%clk 0:01:43]}  Be6 {[%clk 0:01:08]} 32. Rd8 {[%clk 0:01:41]}  h5 {[%clk 0:00:58]} 33. Ke3 {[%clk 0:01:38]}  Ke7 {[%clk 0:00:56]} 34. Rh8 {[%clk 0:01:36]}  Kd6 {[%clk 0:00:57]} 35. Kd4 {[%clk 0:01:30]}  a5 {[%clk 0:00:49]} 36. Rb8 {[%clk 0:01:21]}  Kc7 {[%clk 0:00:48]} 37. Re8 {[%clk 0:01:20]}  Bf5 {[%clk 0:00:47]} 38. Re5 {[%clk 0:01:13]}  a4 {[%clk 0:00:46]} 39. b4 {[%clk 0:01:12]}  Kc6 {[%clk 0:00:39]} 40. a3 {[%clk 0:01:11]}  Bd7 {[%clk 0:00:34]} 41. Rc5+ {[%clk 0:00:35]}  Kd6 {[%clk 0:00:31]} 42. Ra5 {[%clk 0:00:35]}  Bc8 {[%clk 0:00:30]} 43. Re5 {[%clk 0:00:31]}  Bd7 {[%clk 0:00:24]} 44. Ra5 {[%clk 0:00:30]}  Bc6 {[%clk 0:00:21]} 45. Ra6 {[%clk 0:00:25]}  Kc7 {[%clk 0:00:19]} 46. Kc5 {[%clk 0:00:23]}  Nd7+ {[%clk 0:00:17]} 47. Kd4 {[%clk 0:00:23]}  Nb6 {[%clk 0:00:17]} 48. Kc5 {[%clk 0:00:23]}  Nd7+ {[%clk 0:00:17]} 49. Kd4 {[%clk 0:00:23]}  Kb7 {[%clk 0:00:14]} 50. Ra5 {[%clk 0:00:22]}  Kb6 {[%clk 0:00:13]} 51. Rg5 {[%clk 0:00:22]}  Nf8 {[%clk 0:00:13]} 52. Ke5 {[%clk 0:00:20]}  Bd7 {[%clk 0:00:12]} 53. Kf6 {[%clk 0:00:16]}  Bf5 {[%clk 0:00:12]} 54. Rxf5 {[%clk 0:00:16]}  gxf5 {[%clk 0:00:13]} 55. Kxf5 {[%clk 0:00:17]}  Kc6 {[%clk 0:00:12]} 56. Kg5 {[%clk 0:00:17]}  Kd5 {[%clk 0:00:11]} 57. Kxh5 {[%clk 0:00:17]}  Kc4 {[%clk 0:00:11]} 58. g4 {[%clk 0:00:16]}  Kb3 {[%clk 0:00:11]} 59. b5 {[%clk 0:00:16]}  Kxa3 {[%clk 0:00:09]} 60. b6 {[%clk 0:00:16]}  Kb4 {[%clk 0:00:08]} 61. b7 {[%clk 0:00:16]}  Nd7 {[%clk 0:00:09]} 62. g5 {[%clk 0:00:14]}  a3 {[%clk 0:00:07]} 63. g6 {[%clk 0:00:15]}  a2 {[%clk 0:00:08]} 64. g7 {[%clk 0:00:15]}  a1=Q {[%clk 0:00:08]} 65. g8=Q {[%clk 0:00:15]}  Nf6+ {[%clk 0:00:07]} 66. Kg6 {[%clk 0:00:15]}  Nxg8 {[%clk 0:00:07]} 67. b8=Q+ {[%clk 0:00:15]}  Kc5 {[%clk 0:00:07]} 68. Qf8+ {[%clk 0:00:12]}  Kd5 {[%clk 0:00:07]} 69. Qxg8+ {[%clk 0:00:12]}  Kd6 {[%clk 0:00:06]} 70. Qf8+ {[%clk 0:00:11]}  Kd7 {[%clk 0:00:04]} 71. Qf7+ {[%clk 0:00:11]}  Kd8 {[%clk 0:00:05]} 72. Qf6+ {[%clk 0:00:10]}  Qxf6+ {[%clk 0:00:05]} 73. Kxf6 {[%clk 0:00:11]}  Ke8 {[%clk 0:00:06]} 74. Kg7 {[%clk 0:00:12]}  Ke7 {[%clk 0:00:06]} 75. f5 {[%clk 0:00:12]} 1-0


[Site "https://www.chess.com"]

[Event "Titled Tuesday Blitz July 6 2021"]
[White "Marchena Hurtado, Javier"]
[Black "Nguyen, Quoc Hy"]
[WhiteFideId "2271583"]
[BlackFideId "12410853"]
[WhiteElo "2106"]
[BlackElo "1975"]
[Result "0-1"]
[Round "01"]
[TimeControl "180+1"]
[Date "2021.07.06"]
[WhiteClock "0:00:02"]
[BlackClock "0:00:07"]

1. e4 {[%clk 0:02:59]}  c5 {[%clk 0:01:16]} 2. Nf3 {[%clk 0:02:55]}  d6 {[%clk 0:01:16]} 3. d4 {[%clk 0:02:53]}  cxd4 {[%clk 0:01:17]} 4. Nxd4 {[%clk 0:02:54]}  Nf6 {[%clk 0:01:18]} 5. Nc3 {[%clk 0:02:54]}  a6 {[%clk 0:01:18]} 6. Be3 {[%clk 0:02:54]}  e6 {[%clk 0:01:18]} 7. Qd2 {[%clk 0:02:53]}  Be7 {[%clk 0:01:17]} 8. O-O-O {[%clk 0:02:52]}  b5 {[%clk 0:01:17]} 9. f3 {[%clk 0:02:51]}  Bb7 {[%clk 0:01:16]} 10. g4 {[%clk 0:02:50]}  Nc6 {[%clk 0:01:14]} 11. Kb1 {[%clk 0:02:43]}  Rc8 {[%clk 0:01:13]} 12. g5 {[%clk 0:02:42]}  Nd7 {[%clk 0:01:13]} 13. h4 {[%clk 0:02:42]}  Nde5 {[%clk 0:01:09]} 14. Qf2 {[%clk 0:02:25]}  Qa5 {[%clk 0:00:59]} 15. Nb3 {[%clk 0:02:14]}  Qc7 {[%clk 0:00:53]} 16. h5 {[%clk 0:02:02]}  Nc4 {[%clk 0:00:44]} 17. Bxc4 {[%clk 0:01:59]}  bxc4 {[%clk 0:00:44]} 18. Nd4 {[%clk 0:01:58]}  Rb8 {[%clk 0:00:39]} 19. g6 {[%clk 0:01:51]}  Nxd4 {[%clk 0:00:39]} 20. Bxd4 {[%clk 0:01:40]}  e5 {[%clk 0:00:39]} 21. Bb6 {[%clk 0:01:26]}  Qc8 {[%clk 0:00:33]} 22. gxf7+ {[%clk 0:01:21]}  Kxf7 {[%clk 0:00:34]} 23. f4 {[%clk 0:01:21]}  exf4 {[%clk 0:00:27]} 24. Qxf4+ {[%clk 0:01:19]}  Bf6 {[%clk 0:00:26]} 25. Bd4 {[%clk 0:01:07]}  Qe6 {[%clk 0:00:26]} 26. h6 {[%clk 0:00:59]}  g5 {[%clk 0:00:23]} 27. Qxf6+ {[%clk 0:00:42]}  Qxf6 {[%clk 0:00:23]} 28. Bxf6 {[%clk 0:00:43]}  Kxf6 {[%clk 0:00:24]} 29. Rxd6+ {[%clk 0:00:43]}  Ke5 {[%clk 0:00:20]} 30. Rd7 {[%clk 0:00:38]}  g4 {[%clk 0:00:19]} 31. Rg7 {[%clk 0:00:30]}  Rhg8 {[%clk 0:00:17]} 32. Rxh7 {[%clk 0:00:26]}  g3 {[%clk 0:00:17]} 33. Rg7 {[%clk 0:00:25]}  Rxg7 {[%clk 0:00:12]} 34. hxg7 {[%clk 0:00:24]}  Rg8 {[%clk 0:00:13]} 35. Kc1 {[%clk 0:00:08]}  Rxg7 {[%clk 0:00:12]} 36. Kd2 {[%clk 0:00:08]}  g2 {[%clk 0:00:11]} 37. Rg1 {[%clk 0:00:09]}  Bxe4 {[%clk 0:00:11]} 38. Nxe4 {[%clk 0:00:02]}  Kxe4 {[%clk 0:00:11]} 39. Ke2 {[%clk 0:00:02]}  Kd4 {[%clk 0:00:08]} 40. Kf2 {[%clk 0:00:02]}  c3 {[%clk 0:00:08]} 41. bxc3+ {[%clk 0:00:01]}  Kxc3 {[%clk 0:00:07]} 42. Rxg2 {[%clk 0:00:02]}  Re7 {[%clk 0:00:07]} 43. Rg3+ {[%clk 0:00:02]}  Kxc2 {[%clk 0:00:07]} 44. Ra3 {[%clk 0:00:02]}  Re6 {[%clk 0:00:07]} 45. Kf3 {[%clk 0:00:02]}  Kb2 {[%clk 0:00:06]} 46. Ra5 {[%clk 0:00:02]}  Kc3 {[%clk 0:00:07]} 0-1


[Site "https://www.chess.com"]